fUST/lending_fUST_20240809
["ID","MTS","AMOUNT","RATE_DAILY","PERIOD"]
[334485700,1723158646218,-1329.00768029,0.00027397,7]
[334485702,1723158646232,-399.00535461,0.00027397,7]
[334487056,1723158915706,172.366072,0.00014247,2]
[334487059,1723159376307,170.092746,0.00014247,2]
[334487060,1723159494511,14776.29575441,0.00014247,2]
[334487061,1723159501138,4468.28001141,0.00014247,2]
[334487064,1723159530826,3373.97679438,0.00014247,2]
[334487065,1723159532071,158.48348286,0.00014247,2]
[334487081,1723159701525,4513.55657017,0.000125,2]
[334487083,1723159724548,477.4080943,0.00014247,2]
[334487132,1723159833494,-270.5513048,0.00015751,2]
[334487134,1723159833505,-223.91309087,0.00015751,2]
[334487136,1723159833514,-231.23669746,0.00015952,2]
[334487138,1723159833523,-1163.36571829,0.00015954,2]
[334487140,1723159833533,-1038.0,0.00016038,2]
[334487142,1723159833543,-194.60736977,0.00016095,2]
[334487144,1723159833553,-1991.94991085,0.00016095,2]
[334487145,1723159833563,-309.36591103,0.0001611,2]
[334487146,1723159833573,-154.77557542,0.00016159,2]
[334487147,1723159833583,-205.28206357,0.00016347,2]
[334487148,1723159833593,-206.52432648,0.00016347,2]
[334487149,1723159833602,-341.98285415,0.00016532,2]
[334487150,1723159833611,-162.04648211,0.00017019,2]
[334487252,1723159844123,-24.66494001,0.00015751,2]
[334487824,1723159852625,163.747768,0.00014247,2]
[334488604,1723160421520,273.37336231,9.9e-05,2]
[334488605,1723160478654,223.597478,0.00014247,2]
[334488606,1723160518484,2108.95048088,0.00012,2]
[334488607,1723160519175,16288.37255921,0.00012,2]
[334488608,1723160529115,155.13114429,0.00012,2]
[334488609,1723160586550,3641.55335284,0.00012,2]
[334488610,1723160595903,4720.45734761,0.00012,2]
[334488611,1723160603553,155.16152099,0.00014545,2]
[334488612,1723160618717,162.16055928,0.00014545,2]
[334488613,1723160621134,234.90780722,0.00014545,2]
[334488614,1723160621276,19465.01870701,0.00012,2]
[334488615,1723160621359,218.36320889,0.00012,2]
[334488616,1723160682167,16291.29778098,0.00014545,2]
[334488617,1723160693622,154.80649189,0.00014545,2]
[334488618,1723160699641,179.89584147,0.00012,2]
[334488619,1723160700347,1205.79390363,0.00012,2]
[334488620,1723160710908,3244.131544,0.00012,2]
[334488621,1723160712066,404.75983068,0.00012,2]
[334488622,1723160714001,3608.62140677,0.00014545,2]
[334488623,1723160714703,19465.01870701,0.00014545,2]
[334488624,1723160724874,219.60203398,0.00014545,2]
[334488625,1723160741671,372.20515339,0.00014545,2]
[334488627,1723160826981,2108.95048088,0.00014545,2]
[334488630,1723160871976,1129.98,0.00014952,2]
[334488631,1723160875014,325.15429996,0.00015,2]
[334488633,1723160896660,9416.69149405,0.00014545,2]
[334488634,1723160915438,543.31768053,9.999e-05,2]
[334488635,1723160938490,154.79497275,0.00015,2]
[334488636,1723160951738,371.87679978,9.999e-05,2]
[334488637,1723160969105,-168.495406,0.00015279,2]
[334488638,1723160969129,-168.495406,0.00015438,2]
[334488639,1723160969155,-168.495406,0.00015597,2]
[334488640,1723160969181,-682.09454275,0.00015708,2]
[334488718,1723161032286,-815.28760033,0.00015123,2]
[334488720,1723161032298,-1390.0,0.00015123,2]
[334488723,1723161032314,-324.87774632,0.00015123,2]
[334488833,1723161038114,-8426.9179306,0.00015123,2]
[334488890,1723161042205,248.18905241,9.999e-05,2]
[334488905,1723161077332,5219.57298428,0.00015,2]
[334488906,1723161101778,489.20732557,0.0001212,2]
[334488907,1723161106842,154.93020408,9.999e-05,2]
[334488908,1723161126276,510.26340693,0.0001212,2]
[334488909,1723161129242,186.66166954,0.0001212,2]
[334488910,1723161131353,1636.86457669,0.0001212,2]
[334488911,1723161161117,957.11071957,0.00015,2]
[334488913,1723161450632,665.40284724,9.999e-05,2]
[334488914,1723161456250,210.54479745,9.999e-05,2]
[334488915,1723161513934,222.74529,0.00014247,2]
[334488918,1723161604918,269.54909522,0.00016532,7]
[334488920,1723161683070,2005.0,0.0001665,10]
[334488923,1723161761173,269.54909522,0.00016532,7]
[334488924,1723161763150,189.84459591,9.999e-05,2]
[334488926,1723161806530,576.96359347,0.0001212,2]
[334488928,1723161810187,189.84459591,0.0001212,2]
[334488933,1723161846183,189.84459591,0.00014691,2]
[334488935,1723161857699,154.79103211,9.999e-05,2]
[334488936,1723161887568,154.79103211,9.999e-05,2]
[334488939,1723161918826,189.84459591,0.0001212,2]
[334488943,1723161961786,494.46439567,0.00014691,2]
[334488946,1723162094346,183.773879,0.00014548,2]
[334488947,1723162094548,183.773879,0.00014801,2]
[334488950,1723162096288,183.773879,0.00014571,2]
[334488951,1723162096505,183.773879,0.00014951,2]
[334488976,1723162232286,-150.0,0.00015425,2]
[334488977,1723162232295,-300.0,0.00015541,2]
[334488978,1723162232305,-4100.4427763,0.00015542,2]
[334489004,1723162238026,-2147.12798362,0.00015542,2]
[334489006,1723162238041,-18652.42924008,0.00015542,2]
[334489007,1723162238051,-5261.47013064,0.0001557,2]
[334489008,1723162238060,-8431.3498158,0.00015708,2]
[334489009,1723162238070,-3088.98876635,0.00015708,2]
[334489010,1723162238080,-154.77557542,0.00015712,2]
[334489011,1723162238089,-154.79103211,0.00015851,2]
[334489012,1723162238098,-250.44450183,0.00015952,2]
[334489013,1723162238107,-154.77557542,0.00015954,2]
[334489014,1723162238116,-6766.66462351,0.0001601,2]
[334489015,1723162238125,-612.35558337,0.00016347,2]
[334489016,1723162238135,-154.87462466,0.00017019,2]
[334489017,1723162238144,-494.46439567,0.00017019,2]
[334489018,1723162238154,-420.0,0.00017095,2]
[334489019,1723162238164,-686.43389016,0.00017269,2]
[334489020,1723162238173,-932.36255016,0.00017389,2]
[334489021,1723162238182,-568.67802251,0.00017403,2]
[334489022,1723162238192,-189.84459591,0.00017807,2]
[334489023,1723162238201,-727.66907435,0.0001784,2]
[334489024,1723162238211,-414.10646219,0.00017882,2]
[334489025,1723162238220,-154.77557542,0.00017882,2]
[334489026,1723162238230,-205.09401543,0.00018125,2]
[334489027,1723162238240,-188.26910558,0.00018302,2]
[334489028,1723162238250,-155.17023409,0.00018302,2]
[334489029,1723162238261,-305.61216035,0.00018316,2]
[334489030,1723162238270,-154.77557542,0.00018402,2]
[334489031,1723162238279,-154.77557542,0.00018489,2]
[334489032,1723162238290,-587.0,0.00018804,2]
[334489033,1723162238299,-168.516465,0.00019178,2]
[334489034,1723162238308,-167.567879,0.00019178,2]
[334489035,1723162238317,-2005.0,0.0001998,10]
[334489036,1723162238327,-1179.01,0.0001998,3]
[334489037,1723162238336,-589.5,0.0001998,3]
[334489038,1723162238346,-2005.0,0.00019989,10]
[334489039,1723162238355,-35378.7537273,0.0001999,2]
[334489040,1723162238365,-294.75,0.0001999,3]
[334489041,1723162238374,-884.29,0.0001999,3]
[334489042,1723162238383,-154.94664795,0.0002,2]
[334489043,1723162238393,-1444.35779383,0.0002,2]
[334489044,1723162238402,-427.19488527,0.0002,2]
[334489045,1723162238412,-156.42647328,0.0002,2]
[334489046,1723162238421,-294.2333485,0.0002,2]
[334489047,1723162238430,-48998.99668614,0.0002,2]
[334489048,1723162238440,-545.76851484,0.0002,2]
[334489049,1723162238449,-157.91149328,0.0002,2]
[334489050,1723162238459,-151.47142851,0.0002,2]
[334489051,1723162238468,-6766.66462344,0.00020109,2]
[334489052,1723162238478,-222.74529,0.00020707,2]
[334489053,1723162238487,-301.12995539,0.00020721,2]
[334489054,1723162238497,-154.77557542,0.00020721,2]
[334489055,1723162238506,-150.112233,0.000209,4]
[334489056,1723162238515,-35378.7537273,0.0002099,3]
[334489057,1723162238524,-151.0,0.0002099,2]
[334489058,1723162238535,-151.0,0.0002099,2]
[334489059,1723162238544,-151.0,0.0002099,2]
[334489060,1723162238554,-151.0,0.0002099,2]
[334489061,1723162238563,-296.42748,0.0002099,2]
[334489062,1723162238571,-151.0,0.0002099,2]
[334489063,1723162238590,-218.511062,0.0002099,2]
[334489064,1723162238603,-218.511062,0.0002099,2]
[334489065,1723162238613,-225.1717,0.0002099,2]
[334489066,1723162238622,-225.1717,0.0002099,2]
[334489067,1723162238632,-2080.94370748,0.00021,2]
[334489068,1723162238641,-232.69346153,0.00021,2]
[334489069,1723162238651,-7481.67943312,0.00021,2]
[334489070,1723162238660,-503.7190665,0.000212,2]
[334489071,1723162238669,-2358.02,0.0002135,3]
[334489072,1723162238678,-1179.0,0.0002135,3]
[334489073,1723162238688,-589.5,0.0002136,3]
[334489074,1723162238697,-150.112233,0.000216,5]
[334489075,1723162238707,-4999.99999901,0.00022,4]
[334489076,1723162238717,-160.64700877,0.00022,2]
[334489077,1723162238730,-333.19323305,0.00022,2]
[334489078,1723162238739,-2063.38602183,0.00022,2]
[334489079,1723162238749,-243.0,0.00022,2]
[334489080,1723162238758,-302.60665372,0.00022,2]
[334489081,1723162238768,-173.0,0.00022,2]
[334489082,1723162238778,-881.97401853,0.0002217,2]
[334489083,1723162238790,-243.0,0.00022192,2]
[334489084,1723162238799,-150.112233,0.000222,3]
[334489085,1723162238811,-302.60665372,0.0002222,2]
[334489086,1723162238822,-302.60665372,0.0002244,2]
[334489087,1723162238832,-302.60665372,0.0002266,2]
[334489088,1723162238841,-620.00215438,0.0002268,2]
[334489089,1723162238850,-964.6973703,0.0002268,2]
[334489090,1723162238860,-302.60665372,0.0002288,2]
[334489091,1723162238869,-225.1717,0.0002288,7]
[334489092,1723162238879,-225.1717,0.0002288,7]
[334489093,1723162238888,-150.112233,0.000229,3]
[334489094,1723162238897,-472.12044886,0.00023,2]
[334489095,1723162238907,-8017.3369114,0.00023,2]
[334489096,1723162238917,-151.0,0.00023,7]
[334489097,1723162238927,-151.0,0.00023,7]
[334489098,1723162238936,-151.0,0.00023,7]
[334489099,1723162238945,-151.0,0.00023,7]
[334489100,1723162238955,-151.0,0.00023,7]
[334489101,1723162238965,-151.0,0.00023,7]
[334489102,1723162238974,-151.0,0.00023,7]
[334489103,1723162238984,-151.0,0.00023,7]
[334489104,1723162238993,-151.0,0.00023,7]
[334489105,1723162239002,-151.0,0.00023,7]
[334489106,1723162239012,-151.0,0.00023,7]
[334489107,1723162239021,-151.0,0.00023,7]
[334489108,1723162239030,-218.511062,0.00023,7]
[334489109,1723162239046,-218.511062,0.00023,7]
[334489110,1723162239060,-243.0,0.00023014,2]
[334489111,1723162239070,-173.0,0.00023014,2]
[334489112,1723162239079,-453.1388788,0.000231,4]
[334489113,1723162239088,-151.0,0.00023148,7]
[334489114,1723162239098,-35378.7537273,0.00023238,3]
[334489115,1723162239108,-225.1717,0.00023238,7]
[334489116,1723162239117,-225.1717,0.00023238,7]
[334489117,1723162239126,-151.0,0.00023258,7]
[334489118,1723162239135,-151.0,0.00023258,7]
[334489119,1723162239145,-152.329468,0.00023258,7]
[334489120,1723162239156,-151.0,0.00023258,7]
[334489121,1723162239165,-151.445866,0.00023258,7]
[334489122,1723162239174,-151.0,0.00023258,7]
[334489123,1723162239184,-151.0,0.00023258,7]
[334489124,1723162239193,-151.0,0.00023258,2]
[334489125,1723162239202,-150.112233,0.000235,3]
[334489126,1723162239212,-151.0,0.00023653,7]
[334489127,1723162239222,-151.0,0.00023653,7]
[334489128,1723162239231,-151.0,0.00023653,2]
[334489129,1723162239240,-620.00010772,0.00023814,2]
[334489130,1723162239250,-637.23486852,0.00023814,2]
[334489131,1723162239260,-320.06058595,0.00023898,2]
[334489132,1723162239269,-500.0,0.00023898,2]
[334489133,1723162239278,-198.55798383,0.00023898,2]
[334489134,1723162239290,-312.81205904,0.00023898,2]
[334489135,1723162239299,-500.0,0.00023898,2]
[334489136,1723162239309,-500.0,0.00023898,2]
[334489137,1723162239319,-500.0,0.00023898,2]
[334489138,1723162239329,-500.0,0.00023898,2]
[334489139,1723162239339,-499.91525842,0.00023898,2]
[334489140,1723162239348,-500.0,0.00023898,2]
[334489141,1723162239358,-500.0,0.00023898,2]
[334489142,1723162239367,-500.0,0.00023898,2]
[334489143,1723162239376,-500.0,0.00023898,2]
[334489144,1723162239386,-500.0,0.00023898,2]
[334489145,1723162239395,-500.0,0.00023898,2]
[334489146,1723162239405,-500.0,0.00023898,2]
[334489147,1723162239415,-500.0,0.00023898,2]
[334489148,1723162239424,-500.0,0.00023898,2]
[334489149,1723162239434,-151.0,0.00023899,7]
[334489151,1723162239448,-151.0,0.00023899,7]
[334489152,1723162239458,-151.0,0.00023899,7]
[334489153,1723162239468,-151.0,0.00023899,7]
[334489154,1723162239477,-151.0,0.00023899,7]
[334489155,1723162239487,-218.511062,0.00023899,7]
[334489157,1723162239496,-218.511062,0.00023899,7]
[334489159,1723162239506,-500.0,0.00023899,2]
[334489160,1723162239516,-500.0,0.00023899,2]
[334489161,1723162239526,-500.0,0.00023899,2]
[334489162,1723162239536,-500.0,0.00023899,2]
[334489163,1723162239554,-500.0,0.00023899,2]
[334489164,1723162239563,-500.0,0.00023899,2]
[334489165,1723162239573,-500.0,0.00023899,2]
[334489166,1723162239583,-500.0,0.00023899,2]
[334489167,1723162239592,-500.0,0.00023899,2]
[334489168,1723162239601,-500.0,0.00023899,2]
[334489169,1723162239611,-500.0,0.00023899,2]
[334489170,1723162239622,-500.0,0.00023899,2]
[334489171,1723162239632,-500.0,0.00023899,2]
[334489172,1723162239642,-500.0,0.00023899,2]
[334489173,1723162239651,-500.0,0.00023899,2]
[334489174,1723162239660,-500.0,0.00023899,2]
[334489175,1723162239669,-500.0,0.00023899,2]
[334489176,1723162239680,-500.0,0.00023899,2]
[334489177,1723162239689,-500.0,0.00023899,2]
[334489178,1723162239699,-500.0,0.00023899,2]
[334489179,1723162239708,-151.0,0.000239,7]
[334489180,1723162239719,-151.0,0.000239,7]
[334489181,1723162239736,-151.0,0.000239,7]
[334489182,1723162239746,-151.0,0.000239,7]
[334489183,1723162239756,-151.0,0.000239,7]
[334489185,1723162239767,-218.511062,0.000239,7]
[334489187,1723162239777,-218.511062,0.000239,7]
[334489188,1723162239787,-225.1717,0.000239,7]
[334489189,1723162239798,-225.1717,0.000239,7]
[334489190,1723162239808,-35378.7537273,0.000239,3]
[334489191,1723162239820,-14440.98601694,0.0002391,2]
[334489192,1723162239829,-168.878984,0.0002391,7]
[334489193,1723162239839,-168.878984,0.0002391,7]
[334489194,1723162239848,-151.0,0.0002391,2]
[334489195,1723162239858,-151.0,0.0002391,7]
[334489196,1723162239867,-151.0,0.0002391,7]
[334489197,1723162239877,-151.0,0.0002391,7]
[334489198,1723162239887,-151.0,0.0002391,7]
[334489199,1723162239897,-151.0,0.0002391,7]
[334489200,1723162239907,-151.0,0.0002391,7]
[334489201,1723162239916,-151.0,0.0002391,7]
[334489202,1723162239926,-151.0,0.0002391,7]
[334489203,1723162239935,-151.0,0.0002391,7]
[334489204,1723162239945,-151.0,0.0002399,7]
[334489205,1723162239955,-151.0,0.0002399,7]
[334489206,1723162239965,-213.479005,0.0002399,7]
[334489207,1723162239976,-213.479005,0.0002399,7]
[334489208,1723162239985,-151.0,0.0002399,7]
[334489209,1723162239995,-151.0,0.0002399,7]
[334489210,1723162240005,-1000.0,0.00023999,2]
[334489211,1723162240014,-4350.92455896,0.00024,30]
[334489212,1723162240023,-318.49119154,0.00024,2]
[334489213,1723162240034,-151.0,0.00024,7]
[334489214,1723162240047,-151.0,0.00024,7]
[334489215,1723162240057,-151.0,0.00024,7]
[334489216,1723162240066,-151.0,0.00024,7]
[334489217,1723162240076,-151.0,0.00024,7]
[334489218,1723162240086,-151.0,0.00024,7]
[334489219,1723162240296,-151.0,0.00024,7]
[334489220,1723162240306,-153.0,0.00024155,2]
[334489221,1723162240317,-173.0,0.00024164,2]
[334489222,1723162240326,-245.0,0.00024164,2]
[334489223,1723162240335,-150.112233,0.000242,4]
[334489224,1723162240345,-6766.66462344,0.00024207,2]
[334489225,1723162240355,-414.1059301,0.00024285,2]
[334489226,1723162240364,-2605.08504403,0.000245,2]
[334489227,1723162240374,-151.0,0.000245,7]
[334489228,1723162240383,-150.112233,0.000248,2]
[334489229,1723162240394,-153.0,0.00024848,2]
[334489230,1723162240404,-153.0,0.00024848,2]
[334489231,1723162240414,-153.0,0.00024848,2]
[334489232,1723162240424,-153.0,0.00024848,2]
[334489233,1723162240434,-153.0,0.00024848,2]
[334489234,1723162240444,-153.0,0.00024848,2]
[334489235,1723162240454,-153.0,0.00024848,2]
[334489236,1723162240463,-153.0,0.00024848,2]
[334489237,1723162240473,-153.0,0.00024848,2]
[334489238,1723162240483,-153.0,0.00024848,2]
[334489239,1723162240492,-153.0,0.00024848,2]
[334489240,1723162240502,-153.0,0.00024848,2]
[334489241,1723162240511,-153.0,0.00024848,2]
[334489242,1723162240521,-153.0,0.00024848,2]
[334489243,1723162240531,-153.0,0.00024855,2]
[334489244,1723162240542,-153.0,0.00024855,2]
[334489245,1723162240551,-153.0,0.00024855,2]
[334489246,1723162240561,-151.0,0.00024855,7]
[334489247,1723162240570,-151.0,0.00024855,7]
[334489248,1723162240580,-151.0,0.00024855,7]
[334489249,1723162240589,-176.528033,0.00024855,7]
[334489250,1723162240598,-2996.83924733,0.000249,2]
[334489251,1723162240608,-151.0,0.00024967,7]
[334489252,1723162240618,-151.0,0.00024967,7]
[334489253,1723162240628,-151.0,0.00024967,7]
[334489254,1723162240638,-151.0,0.00024967,7]
[334489255,1723162240647,-151.0,0.00024967,7]
[334489256,1723162240657,-151.0,0.00024967,7]
[334489257,1723162240666,-151.0,0.00024967,7]
[334489258,1723162240675,-168.878984,0.00024968,7]
[334489259,1723162240684,-168.878984,0.00024968,7]
[334489260,1723162240693,-173.109334,0.00024968,2]
[334489261,1723162240703,-151.0,0.00024988,7]
[334489262,1723162240713,-35378.7537273,0.00024989,3]
[334489263,1723162240733,-151.0,0.00024989,7]
[334489264,1723162240746,-151.0,0.00024989,7]
[334489265,1723162240755,-151.0,0.00024989,7]
[334489266,1723162240766,-151.0,0.00024989,7]
[334489267,1723162240778,-151.0,0.00024989,7]
[334489268,1723162240788,-218.511062,0.00024989,7]
[334489269,1723162240798,-218.511062,0.00024989,7]
[334489270,1723162240810,-225.1717,0.00024989,7]
[334489271,1723162240820,-225.1717,0.00024989,7]
[334489272,1723162240831,-151.0,0.0002499,7]
[334489273,1723162240841,-70757.5074545,0.0002499,3]
[334489274,1723162240850,-151.0,0.0002499,7]
[334489275,1723162240860,-151.0,0.0002499,7]
[334489276,1723162240870,-151.0,0.0002499,7]
[334489277,1723162240880,-151.0,0.0002499,7]
[334489278,1723162240891,-218.511062,0.0002499,7]
[334489279,1723162240901,-218.511062,0.0002499,7]
[334489280,1723162240910,-225.1717,0.0002499,7]
[334489281,1723162240921,-225.1717,0.0002499,7]
[334489282,1723162240932,-151.0,0.00024999,7]
[334489283,1723162240942,-151.0,0.00024999,7]
[334489284,1723162240952,-151.0,0.00024999,7]
[334489285,1723162240961,-151.0,0.00024999,7]
[334489286,1723162240971,-151.0,0.00024999,7]
[334489287,1723162240981,-151.0,0.00024999,7]
[334489288,1723162240991,-213.479005,0.00024999,7]
[334489289,1723162241001,-213.479005,0.00024999,7]
[334489290,1723162241011,-151.0,0.00024999,7]
[334489291,1723162241021,-151.0,0.00024999,7]
[334489292,1723162241030,-23201.42953338,0.00025,30]
[334489293,1723162241040,-402.58073778,0.00025,2]
[334489294,1723162241050,-1363.91466198,0.00025,2]
[334489295,1723162241060,-1855.52515125,0.00025,2]
[334489296,1723162241070,-1027.78654758,0.00025,2]
[334489297,1723162241079,-45217.61026187,0.00025,2]
[334489298,1723162241089,-12403.13829252,0.00025,2]
[334489299,1723162241098,-299.4439556,0.00025,2]
[334489300,1723162241108,-151.0,0.00025,7]
[334489301,1723162241119,-151.0,0.00025,7]
[334489302,1723162241128,-277.324012,0.00025,7]
[334489303,1723162241139,-151.0,0.00025,7]
[334489304,1723162241148,-151.0,0.00025,7]
[334489305,1723162241158,-151.0,0.00025,7]
[334489306,1723162241167,-213.479005,0.00025,7]
[334489307,1723162241176,-213.479005,0.00025,7]
[334489308,1723162241186,-151.0,0.00025,7]
[334489309,1723162241196,-151.0,0.00025,7]
[334489310,1723162241206,-168.878984,0.00025,7]
[334489311,1723162241216,-168.878984,0.00025,7]
[334489312,1723162241226,-168.878984,0.00025,7]
[334489313,1723162241236,-168.878984,0.00025,7]
[334489314,1723162241247,-151.0,0.00025,7]
[334489315,1723162241257,-151.0,0.00025,7]
[334489316,1723162241267,-151.0,0.00025,7]
[334489317,1723162241277,-151.0,0.00025,7]
[334489318,1723162241289,-151.0,0.00025,7]
[334489319,1723162241299,-151.0,0.00025,7]
[334489320,1723162241308,-151.0,0.00025,7]
[334489321,1723162241317,-259.437098,0.00025,7]
[334489322,1723162241327,-278.816776,0.00025,7]
[334489323,1723162241337,-151.0,0.00025,7]
[334489324,1723162241346,-151.0,0.00025,7]
[334489325,1723162241356,-218.511062,0.00025,7]
[334489326,1723162241365,-218.511062,0.00025,7]
[334489327,1723162241375,-225.1717,0.00025,7]
[334489328,1723162241385,-225.1717,0.00025,7]
[334489329,1723162241394,-620.00000539,0.00025005,2]
[334489330,1723162241403,-620.86174343,0.00025005,2]
[334489331,1723162241414,-1531.749,0.00025081,2]
[334489332,1723162241424,-3205.94926313,0.00025415,2]
[334489333,1723162241444,-284.83809153,0.00025415,2]
[334489340,1723162241798,-151.661857,0.0002099,2]
[334489341,1723162241810,-150.112233,0.00022,3]
[334489342,1723162241820,-150.112233,0.00025,2]
[334489343,1723162241829,-500.01,0.00025427,2]
[334489344,1723162241839,-150.112233,0.000255,8]
[334489345,1723162241848,-151.0,0.000255,7]
[334489346,1723162241858,-151.0,0.000255,7]
[334489347,1723162241867,-151.0,0.000255,7]
[334489348,1723162241877,-153.0,0.00025616,2]
[334489349,1723162241886,-303.2178083,0.00025616,2]
[334489350,1723162241895,-294.4971025,0.00025616,2]
[334489351,1723162241904,-153.0,0.00025616,2]
[334489352,1723162241914,-294.4971025,0.00025616,2]
[334489353,1723162241923,-153.0,0.00025616,2]
[334489354,1723162241933,-153.0,0.00025616,2]
[334489355,1723162241943,-294.4971025,0.00025616,2]
[334489356,1723162241952,-153.0,0.00025616,2]
[334489357,1723162241962,-153.0,0.00025616,2]
[334489358,1723162241971,-153.0,0.00025753,2]
[334489359,1723162241981,-213.479005,0.00025775,7]
[334489360,1723162241990,-213.479005,0.00025775,7]
[334489361,1723162241999,-151.0,0.00025775,7]
[334489362,1723162242008,-151.0,0.00025775,7]
[334489363,1723162242017,-168.878984,0.00025775,7]
[334489364,1723162242027,-168.878984,0.00025775,7]
[334489365,1723162242038,-243.0,0.00025775,2]
[334489366,1723162242049,-1034.97648217,0.00026,10]
[334489367,1723162242059,-200.0,0.00026027,2]
[334489368,1723162242069,-150.112233,0.000261,10]
[334489369,1723162242079,-500.0,0.00026181,2]
[334489370,1723162242088,-620.00000027,0.00026255,2]
[334489371,1723162242098,-620.04308717,0.00026255,2]
[334489372,1723162242107,-151.0,0.00026279,7]
[334489373,1723162242117,-218.511062,0.00026279,7]
[334489374,1723162242126,-218.511062,0.00026279,7]
[334489375,1723162242135,-225.1717,0.00026279,7]
[334489376,1723162242145,-225.1717,0.00026279,7]
[334489377,1723162242154,-150.0,0.00026279,2]
[334489378,1723162242163,-507.0,0.00026279,2]
[334489379,1723162242174,-35378.7537273,0.00026428,3]
[334489380,1723162242184,-296.227778,0.00026438,7]
[334489381,1723162242194,-207.1717265,0.00026438,2]
[334489382,1723162242203,-294.4971025,0.00026438,2]
[334489383,1723162242213,-153.0,0.00026438,2]
[334489384,1723162242222,-294.4971025,0.00026438,2]
[334489385,1723162242232,-294.4971025,0.00026438,2]
[334489386,1723162242241,-294.4971025,0.00026438,2]
[334489387,1723162242250,-294.4971025,0.00026438,2]
[334489388,1723162242259,-294.4971025,0.00026438,2]
[334489389,1723162242268,-7458.94652043,0.0002649,2]
[334489390,1723162242278,-151.0,0.0002649,7]
[334489391,1723162242289,-151.0,0.0002649,7]
[334489392,1723162242299,-151.0,0.0002649,7]
[334489393,1723162242308,-218.511062,0.0002649,7]
[334489394,1723162242318,-218.511062,0.0002649,7]
[334489395,1723162242327,-225.1717,0.0002649,7]
[334489396,1723162242337,-225.1717,0.0002649,7]
[334489397,1723162242346,-120167.70826429,0.00026517,2]
[334489398,1723162242357,-151.0,0.00026517,7]
[334489399,1723162242366,-151.0,0.00026517,7]
[334489400,1723162242376,-151.0,0.00026517,7]
[334489401,1723162242386,-213.479005,0.00026517,7]
[334489402,1723162242395,-213.479005,0.00026517,7]
[334489403,1723162242404,-151.0,0.00026517,7]
[334489404,1723162242414,-151.0,0.00026517,7]
[334489405,1723162242424,-168.878984,0.00026517,7]
[334489406,1723162242433,-168.878984,0.00026517,7]
[334489407,1723162242443,-151.0,0.00026517,7]
[334489408,1723162242452,-151.0,0.00026517,7]
[334489409,1723162242462,-151.0,0.00026517,7]
[334489410,1723162242471,-151.0,0.00026517,7]
[334489411,1723162242481,-218.511062,0.00026517,7]
[334489412,1723162242491,-218.511056,0.00026517,7]
[334489413,1723162242500,-225.1717,0.00026517,7]
[334489414,1723162242510,-225.171708,0.00026517,7]
[334489415,1723162242519,-173.0,0.00026581,2]
[334489416,1723162242528,-217.43,0.000266,7]
[334489417,1723162242539,-7028.72,0.000266,14]
[334489418,1723162242549,-621.87,0.000266,14]
[334489419,1723162242558,-150.112233,0.000267,9]
[334489420,1723162242568,-530.73,0.00026711,2]
[334489421,1723162242577,-294.4971025,0.00026767,2]
[334489422,1723162242586,-1000.0,0.000268,2]
[334489423,1723162242595,-1094.03,0.000268,7]
[334489424,1723162242605,-153.0,0.00026849,2]